fUSD/lending_fUSD_20260225
["ID","MTS","AMOUNT","RATE_DAILY","PERIOD"]
[406649738,1772032250291,-150.0,0.00017999,2]
[406649739,1772032250301,-237.33060179,0.00017999,2]
[406649740,1772032250312,-1000.0,0.00018,2]
[406649741,1772032250322,-391.56886158,0.00018,2]
[406649742,1772032250332,-1833358.42464598,0.00018,2]
[406649743,1772032250588,-1708.82134858,0.00018,2]
[406649744,1772032250600,-1035.09887345,0.00018,2]
[406649745,1772032250716,-2858.84734396,0.00018,2]
[406649746,1772032250727,-46865.39002192,0.00018,2]
[406649747,1772032250738,-37635.64314714,0.00018,2]
[406649748,1772032253422,-1641.21677593,0.00018,2]
[406649749,1772032253435,-12484.4912338,0.00018,2]
[406649750,1772032408883,500.0,6.586e-05,2]
[406649751,1772032447477,1200.0,0.0001,3]
[406649755,1772033235521,2400.0,0.0001,3]
[406649792,1772033431756,-1852.42,6.715e-05,2]
[406649793,1772033431767,-208.0,6.715e-05,2]
[406649794,1772033431780,-600.0,6.8e-05,2]
[406649795,1772033431789,-250.0,6.865e-05,2]
[406649796,1772033431799,-250.0,6.869e-05,2]
[406649797,1772033431809,-300.0,6.871e-05,2]
[406649798,1772033431818,-300.0,6.871e-05,2]
[406649799,1772033431829,-1200.0,6.871e-05,2]
[406649800,1772033431842,-300.0,6.871e-05,2]
[406649801,1772033431852,-1200.0,6.872e-05,2]
[406649802,1772033431862,-500.0,6.873e-05,2]
[406649803,1772033431871,-341.49183462,6.873e-05,2]
[406649804,1772033431882,-500.0,6.873e-05,2]
[406649805,1772033431892,-500.0,6.873e-05,2]
[406649806,1772033431901,-500.0,6.873e-05,2]
[406649808,1772033431911,-500.0,6.873e-05,2]
[406649809,1772033431923,-500.0,6.873e-05,2]
[406649810,1772033431932,-259.0478695,6.873e-05,2]
[406649811,1772033431944,-240.9521305,6.873e-05,2]
[406649812,1772033431954,-500.0,6.873e-05,2]
[406649813,1772033431963,-1259.04786951,6.881e-05,2]
[406649814,1772033431975,-240.95213049,6.881e-05,2]
[406649815,1772033431988,-1159.04786951,6.9e-05,2]
[406649816,1772033432001,-40.95213049,6.9e-05,2]
[406649817,1772033432011,-1800.0,7e-05,2]
[406649818,1772033432020,-210.0,7.277e-05,2]
[406649819,1772033432030,-151.0,7.396e-05,2]
[406649820,1772033432040,-150.0,7.397e-05,2]
[406649821,1772033432050,-262.01505436,7.398e-05,2]
[406649822,1772033432059,-500.0,7.398e-05,2]
[406649823,1772033432069,-500.0,7.398e-05,2]
[406649824,1772033432080,-500.0,7.398e-05,2]
[406649825,1772033432090,-500.0,7.398e-05,2]
[406649826,1772033432099,-500.0,7.398e-05,2]
[406649827,1772033432110,-500.0,7.398e-05,2]
[406649828,1772033432119,-504.83019087,7.398e-05,2]
[406649829,1772033432129,-500.0,7.398e-05,2]
[406649830,1772033432138,-500.0,7.398e-05,2]
[406649831,1772033432148,-65387.46821218,7.399e-05,2]
[406649833,1772033432159,-142607.09261271,7.399e-05,2]
[406649835,1772033432175,-1166.30530978,7.399e-05,2]
[406649838,1772033432188,-579.32310082,7.399e-05,2]
[406649839,1772033432377,-1518.79195812,7.399e-05,2]
[406649840,1772033432389,-950.69681676,7.399e-05,2]
[406649877,1772033438349,-2941.30980711,7.399e-05,2]
[406649878,1772033438467,-690.45,7.399e-05,2]
[406649904,1772033440190,-1784158.56218252,7.399e-05,2]
[406649905,1772033440206,-2265.77704776,7.4e-05,2]
[406649906,1772033440219,-1000.0,7.421e-05,2]
[406649907,1772033440231,-1000.0,7.421e-05,2]
[406649908,1772033440244,-1000.0,7.421e-05,2]
[406649909,1772033440256,-1000.0,7.421e-05,2]
[406649910,1772033440268,-7578.39454732,7.49e-05,2]
[406649911,1772033440280,-1403.682,7.499e-05,2]
[406649912,1772033440293,-165.024,7.499e-05,2]
[406649913,1772033440307,-1078.36665032,7.499e-05,2]
[406649914,1772033440321,-208.0,7.522e-05,2]
[406649915,1772033440334,-193.0,7.549e-05,2]
[406649916,1772033440346,-250.0,7.549e-05,2]
[406649917,1772033440355,-1680.0,7.558e-05,2]
[406649918,1772033440365,-420.0,7.558e-05,2]
[406649919,1772033440375,-697.0,7.559e-05,2]
[406649920,1772033440605,-3568.85447924,7.6e-05,2]
[406649921,1772033440634,-7368.15135409,7.6e-05,2]
[406649922,1772033440645,-10221.75688498,7.6e-05,2]
[406649923,1772033440654,-15349.66811239,7.6e-05,2]
[406649924,1772033440664,-2344.40559332,7.6e-05,2]
[406649925,1772033440673,-2482.0,7.726e-05,2]
[406649926,1772033440683,-1098.52918604,7.74e-05,2]
[406649927,1772033440692,-500.0,7.841e-05,2]
[406649928,1772033440701,-500.0,7.968e-05,2]
[406649929,1772033440711,-16890.89,7.973e-05,2]
[406649930,1772033440720,-1864.92716342,8e-05,2]
[406649932,1772033440729,-255.0,8.137e-05,2]
[406649933,1772033440738,-500.0,8.219e-05,2]
[406649935,1772033440748,-500.0,8.219e-05,2]
[406649937,1772033440758,-641.67496802,8.219e-05,2]
[406649939,1772033440767,-500.0,8.219e-05,2]
[406649940,1772033440776,-500.0,8.219e-05,2]
[406649942,1772033440785,-183.09,8.219e-05,2]
[406649944,1772033440794,-8407.31,8.219e-05,2]
[406649946,1772033440804,-1000.0,8.219e-05,2]
[406649948,1772033440813,-2351.0,8.314e-05,2]
[406649950,1772033440822,-316.0,8.314e-05,2]
[406649951,1772033440831,-420.8585475,8.372e-05,2]
[406649953,1772033440849,-183.09,8.676e-05,2]
[406649955,1772033440858,-150.99,8.864e-05,2]
[406649958,1772033440866,-2061.97,8.864e-05,2]
[406649960,1772033440875,-9999.99,8.864e-05,2]
[406649962,1772033440887,-250.0,8.873e-05,2]
[406649964,1772033440896,-183.09,9.132e-05,2]
[406649965,1772033440905,-3292.0,9.145e-05,2]
[406649967,1772033440915,-1000.0,9.247e-05,2]
[406649969,1772033440924,-183.09,9.589e-05,2]
[406649970,1772033440933,-183.09,0.00010046,2]
[406649971,1772033440944,-4609.0,0.0001006,2]
[406649972,1772033440953,-1000.0,0.00010274,2]
[406649973,1772033440963,-151.0,0.00010372,2]
[406649974,1772033440972,-668789.5032,0.00010375,2]
[406649975,1772033440982,-1709.02684866,0.00010402,2]
[406649976,1772033440991,-183.09,0.00010502,2]
[406649977,1772033441001,-6415.0,0.00010959,2]
[406649978,1772033441011,-183.09,0.00010959,2]
[406649979,1772033441020,-6453.0,0.00011066,2]
[406649980,1772033441029,-447.63445272,0.00011099,2]
[406649981,1772033441039,-447.63445271,0.00011099,2]
[406649982,1772033441049,-447.63445271,0.00011099,2]
[406649983,1772033441058,-447.63445271,0.00011099,2]
[406649984,1772033441068,-1732.78567267,0.00011099,2]
[406649985,1772033441078,-1732.78567267,0.00011099,2]
[406649986,1772033441090,-1732.78567267,0.00011099,2]
[406649987,1772033441100,-1732.78567267,0.00011099,2]
[406649988,1772033441109,-9804.0,0.000112,2]
[406649989,1772033441119,-32879.9337,0.00011258,2]
[406649990,1772033441129,-1000.0,0.00011258,2]
[406649991,1772033441139,-1000.0,0.00011301,2]
[406649992,1772033441148,-183.09,0.00011416,2]
[406649993,1772033441158,-8407.31,0.00011507,2]
[406649994,1772033441169,-5531.0,0.000116,3]
[406649995,1772033441179,-183.09,0.00011872,2]
[406649996,1772033441188,-5531.0,0.00012,5]
[406649997,1772033441197,-447.63445271,0.00012011,2]
[406649998,1772033441207,-1732.78567267,0.00012079,2]
[406649999,1772033441216,-1544.4,0.00012087,2]
[406650000,1772033441225,-9035.0,0.00012172,2]
[406650001,1772033441235,-1000.0,0.00012329,2]
[406650002,1772033441246,-183.09,0.00012329,2]
[406650003,1772033441255,-1277.0,0.00012565,2]
[406650004,1772033441265,-920.0,0.00012565,2]
[406650005,1772033441274,-1219.12,0.00012565,2]
[406650006,1772033441283,-2456.0,0.00012565,2]
[406650007,1772033441292,-618.0,0.00012565,2]
[406650008,1772033441302,-447.63445271,0.00013189,2]
[406650009,1772033441312,-173.91437885,0.00013216,2]
[406650010,1772033441321,-1732.78567267,0.00013243,2]
[406650011,1772033441331,-717.0,0.0001339,2]
[406650012,1772033441342,-500.0,0.00013698,2]
[406650013,1772033441351,-500.0,0.00013698,2]
[406650014,1772033441362,-500.0,0.00013698,2]
[406650015,1772033441371,-500.0,0.00013698,2]
[406650016,1772033441381,-500.0,0.00013698,2]
[406650017,1772033441391,-500.0,0.00013698,2]
[406650018,1772033441400,-500.0,0.00013698,2]
[406650019,1772033441409,-500.0,0.00013698,2]
[406650020,1772033441420,-500.0,0.00013698,2]
[406650021,1772033441429,-500.0,0.00013698,2]
[406650022,1772033441438,-500.0,0.00013698,2]
[406650023,1772033441448,-500.0,0.00013698,2]
[406650024,1772033441457,-500.0,0.00013698,2]
[406650025,1772033441467,-442.42094836,0.00013698,2]
[406650026,1772033441476,-500.0,0.00013699,2]
[406650027,1772033441485,-620.36908714,0.00013699,2]
[406650028,1772033441495,-500.0,0.00013699,2]
[406650029,1772033441504,-160.89687395,0.00013699,2]
[406650030,1772033441513,-500.0,0.00013699,2]
[406650031,1772033441523,-500.0,0.00013699,2]
[406650032,1772033441533,-161.12812418,0.00013699,2]
[406650033,1772033441542,-500.0,0.00013699,2]
[406650034,1772033441551,-500.0,0.00013699,2]
[406650035,1772033441560,-500.0,0.00013699,2]
[406650036,1772033441570,-500.0,0.00013699,2]
[406650037,1772033441580,-162.08719206,0.00013699,2]
[406650038,1772033441591,-500.0,0.00013699,2]
[406650039,1772033441601,-209.669428,0.00013699,2]
[406650040,1772033441610,-524.32496394,0.00013699,2]
[406650041,1772033441620,-500.0,0.00013699,2]
[406650042,1772033441629,-500.0,0.00013699,2]
[406650043,1772033441638,-500.0,0.00013699,2]
[406650044,1772033441647,-163.76963508,0.00013699,2]
[406650045,1772033441657,-500.0,0.00013699,2]
[406650046,1772033441667,-500.0,0.00013699,2]
[406650047,1772033441676,-335.65029794,0.00013699,2]
[406650048,1772033441686,-500.0,0.00013699,2]
[406650049,1772033441695,-500.0,0.00013699,2]
[406650050,1772033441705,-500.0,0.00013699,2]
[406650051,1772033441715,-160.16,0.00013699,2]
[406650052,1772033441724,-500.0,0.00013699,2]
[406650053,1772033441734,-500.0,0.00013699,2]
[406650054,1772033441743,-500.0,0.00013699,2]
[406650055,1772033441753,-500.0,0.00013699,2]
[406650056,1772033441762,-500.0,0.00013699,2]
[406650057,1772033441771,-500.0,0.00013699,2]
[406650058,1772033441780,-308.64663473,0.00013699,2]
[406650059,1772033441790,-500.0,0.00013699,2]
[406650060,1772033441800,-500.0,0.00013699,2]
[406650061,1772033441810,-500.0,0.00013699,2]
[406650062,1772033441819,-278.93340404,0.00013699,2]
[406650063,1772033441828,-337.75482183,0.00013699,2]
[406650064,1772033441840,-163.99667352,0.00013699,2]
[406650065,1772033441853,-500.0,0.00013699,2]
[406650066,1772033441864,-500.0,0.00013699,2]
[406650067,1772033441874,-500.0,0.00013699,2]
[406650068,1772033441885,-500.0,0.00013699,2]
[406650069,1772033441895,-500.0,0.00013699,2]
[406650070,1772033441905,-500.0,0.00013699,2]
[406650071,1772033441915,-500.0,0.00013699,2]
[406650072,1772033441926,-500.0,0.00013699,2]
[406650073,1772033441936,-500.0,0.00013699,2]
[406650074,1772033441945,-500.0,0.00013699,2]
[406650075,1772033441955,-500.0,0.00013699,2]
[406650076,1772033441965,-259.57675211,0.00013699,2]
[406650077,1772033441974,-500.0,0.00013699,2]
[406650078,1772033441984,-500.0,0.00013699,2]
[406650079,1772033441993,-500.0,0.00013699,2]
[406650080,1772033442003,-500.0,0.00013699,2]
[406650081,1772033442012,-500.0,0.00013699,2]
[406650082,1772033442022,-500.0,0.00013699,2]
[406650083,1772033442031,-500.0,0.00013699,2]
[406650084,1772033442041,-500.0,0.00013699,2]
[406650085,1772033442050,-161.14332278,0.00013699,2]
[406650086,1772033442061,-500.0,0.00013699,2]
[406650087,1772033442071,-500.0,0.00013699,2]
[406650088,1772033442081,-500.0,0.00013699,2]
[406650090,1772033442091,-500.0,0.00013699,2]
[406650091,1772033442101,-500.0,0.00013699,2]
[406650092,1772033442111,-500.0,0.00013699,2]
[406650093,1772033442121,-500.0,0.00013699,2]
[406650094,1772033442130,-500.0,0.00013699,2]
[406650095,1772033442140,-500.0,0.00013699,2]
[406650096,1772033442149,-418.52,0.00013699,2]
[406650097,1772033442158,-418.52,0.00013973,2]
[406650098,1772033442167,-1709.02684865,0.00014151,2]
[406650099,1772033442177,-1000.0,0.00014225,2]
[406650100,1772033442186,-1000.0,0.00014247,2]
[406650101,1772033442195,-1000.0,0.00014247,2]
[406650102,1772033442205,-1000.0,0.00014247,2]
[406650103,1772033442214,-1000.0,0.00014247,2]
[406650104,1772033442223,-1000.0,0.00014247,2]
[406650105,1772033442234,-1007.67306464,0.00014247,2]
[406650106,1772033442244,-1000.0,0.00014247,2]
[406650107,1772033442254,-175.96468334,0.00014247,2]
[406650108,1772033442263,-1000.0,0.00014247,2]
[406650109,1772033442273,-380.44800806,0.00014247,2]
[406650110,1772033442282,-776.00043833,0.00014247,2]
[406650111,1772033442292,-800.44121468,0.00014247,2]
[406650112,1772033442302,-1000.0,0.00014247,2]
[406650113,1772033442312,-1000.0,0.00014247,2]
[406650114,1772033442322,-1000.0,0.00014247,2]
[406650115,1772033442331,-1000.0,0.00014247,2]
[406650116,1772033442341,-1000.0,0.00014247,2]
[406650117,1772033442350,-1000.0,0.00014247,2]
[406650118,1772033442359,-1000.0,0.00014247,2]
[406650119,1772033442369,-1000.0,0.00014247,2]
[406650120,1772033442378,-1000.0,0.00014247,2]
[406650121,1772033442387,-1000.0,0.00014247,2]
[406650122,1772033442397,-1000.0,0.00014247,2]
[406650123,1772033442406,-1008.34147468,0.00014247,2]
[406650124,1772033442415,-467.67692832,0.00014247,2]
[406650125,1772033442424,-351.72128687,0.00014247,2]
[406650126,1772033442434,-992.23312849,0.00014247,2]
[406650127,1772033442443,-1000.0,0.00014247,2]
[406650128,1772033442452,-1000.0,0.00014247,2]
[406650129,1772033442462,-1000.0,0.00014247,2]
[406650130,1772033442471,-502.69399529,0.00014247,2]
[406650131,1772033442481,-1000.0,0.00014247,2]
[406650132,1772033442490,-1000.0,0.00014247,2]
[406650133,1772033442500,-185.59048766,0.00014247,2]
[406650134,1772033442509,-505.46860632,0.00014247,2]
[406650135,1772033442519,-1000.0,0.00014247,2]
[406650136,1772033442529,-1000.0,0.00014247,2]
[406650137,1772033442538,-1000.0,0.00014247,2]
[406650138,1772033442548,-1000.0,0.00014247,2]
[406650139,1772033442557,-1000.0,0.00014247,2]
[406650140,1772033442566,-374.88076834,0.00014247,2]
[406650141,1772033442575,-503.12005961,0.00014247,2]
[406650142,1772033442585,-1000.0,0.00014247,2]
[406650143,1772033442594,-1000.0,0.00014247,2]
[406650144,1772033442604,-604.2577825,0.00014247,2]
[406650145,1772033442613,-1000.0,0.00014247,2]
[406650147,1772033442622,-500.72491405,0.00014247,2]
[406650148,1772033442633,-1000.0,0.00014247,2]
[406650149,1772033442642,-1000.0,0.00014247,2]
[406650150,1772033442652,-1000.0,0.00014247,2]
[406650151,1772033442661,-1000.0,0.00014247,2]
[406650152,1772033442670,-1004.88674942,0.00014247,2]
[406650153,1772033442679,-502.589699,0.00014247,2]
[406650154,1772033442689,-1000.0,0.00014247,2]
[406650155,1772033442697,-418.52,0.00014247,2]
[406650156,1772033442707,-500.0,0.00014357,2]
[406650158,1772033442716,-500.0,0.00014357,2]
[406650159,1772033442726,-500.0,0.00014357,2]
[406650160,1772033442735,-500.0,0.00014357,2]
[406650161,1772033442746,-400.83516378,0.00014357,2]
[406650162,1772033442756,-447.63445271,0.00014367,2]
[406650163,1772033442765,-1732.78567267,0.00014407,2]
[406650164,1772033442775,-500.0,0.00014433,2]
[406650165,1772033442785,-418.52,0.00014521,2]
[406650166,1772033442794,-1500.0,0.00014795,2]
[406650167,1772033442804,-344.84278362,0.00014795,2]
[406650168,1772033442813,-1500.0,0.00014795,2]
[406650169,1772033442824,-502.28503114,0.00014795,2]
[406650170,1772033442836,-1500.0,0.00014795,2]
[406650171,1772033442848,-788.09474142,0.00014795,2]
[406650173,1772033442858,-1216.25934348,0.00014795,2]
[406650174,1772033442867,-1500.0,0.00014795,2]
[406650175,1772033442878,-1500.0,0.00014795,2]
[406650176,1772033442888,-1500.0,0.00014795,2]
[406650177,1772033442898,-1009.93232969,0.00014795,2]
[406650178,1772033442907,-1500.0,0.00014795,2]
[406650179,1772033442918,-1091.6833327,0.00014795,2]
[406650180,1772033442928,-1500.0,0.00014795,2]
[406650181,1772033442938,-1500.0,0.00014795,2]
[406650182,1772033442947,-1500.0,0.00014795,2]
[406650183,1772033442957,-1505.84689332,0.00014795,2]
[406650184,1772033442966,-1500.0,0.00014795,2]
[406650185,1772033442975,-1500.0,0.00014795,2]
[406650186,1772033442985,-1508.10480934,0.00014795,2]
[406650187,1772033442994,-1500.0,0.00014795,2]
[406650188,1772033443003,-1500.0,0.00014795,2]
[406650189,1772033443013,-1500.0,0.00014795,2]
[406650190,1772033443023,-1500.0,0.00014795,2]
[406650191,1772033443032,-1500.0,0.00014795,2]
[406650192,1772033443041,-1500.0,0.00014795,2]
[406650193,1772033443050,-1500.0,0.00014795,2]
[406650194,1772033443060,-1500.0,0.00014795,2]
[406650195,1772033443070,-1500.0,0.00014795,2]
[406650196,1772033443080,-1500.0,0.00014795,2]
[406650197,1772033443091,-1012.76163768,0.00014795,2]
[406650198,1772033443101,-1500.0,0.00014795,2]
[406650199,1772033443111,-1500.0,0.00014795,2]
[406650200,1772033443120,-1500.0,0.00014795,2]
[406650201,1772033443131,-1500.0,0.00014795,2]
[406650202,1772033443141,-1006.69135807,0.00014795,2]
[406650203,1772033443152,-418.52933844,0.00014795,2]
[406650204,1772033443163,-505.0,0.00015,2]
[406650205,1772033443172,-1749.1830332,0.00015342,2]
[406650206,1772033443183,-2000.0,0.00015342,2]
[406650207,1772033443192,-2000.0,0.00015342,2]
[406650208,1772033443202,-2000.0,0.00015342,2]
[406650209,1772033443212,-1144.44196517,0.00015342,2]
[406650210,1772033443221,-2000.0,0.00015342,2]
[406650211,1772033443230,-288.76951139,0.00015342,2]
[406650212,1772033443239,-1703.52805437,0.00015342,2]
[406650213,1772033443249,-526.85264,0.00015342,2]
[406650214,1772033443257,-2000.0,0.00015342,2]
[406650215,1772033443267,-2000.0,0.00015342,2]
[406650216,1772033443276,-1511.45189164,0.00015342,2]
[406650217,1772033443285,-2000.0,0.00015342,2]
[406650218,1772033443294,-2000.0,0.00015342,2]
[406650219,1772033443303,-2000.0,0.00015342,2]
[406650220,1772033443313,-2000.0,0.00015342,2]
[406650221,1772033443322,-2000.0,0.00015342,2]
[406650222,1772033443332,-1597.09510233,0.00015342,2]
[406650223,1772033443342,-741.17434169,0.00015342,2]
[406650224,1772033443351,-2000.0,0.00015342,2]
[406650225,1772033443361,-2000.0,0.00015342,2]
[406650226,1772033443370,-2000.0,0.00015342,2]
[406650227,1772033443380,-2000.0,0.00015342,2]
[406650228,1772033443389,-2000.0,0.00015342,2]
[406650229,1772033443398,-1538.67533251,0.00015342,2]
[406650230,1772033443408,-1000.0,0.00015507,2]
[406650231,1772033443417,-447.63445271,0.00015544,2]
[406650232,1772033443427,-1277.0,0.00015565,2]
[406650233,1772033443437,-920.0,0.00015565,2]
[406650234,1772033443447,-1210.0,0.00015565,2]
[406650235,1772033443456,-2456.0,0.00015565,2]
[406650236,1772033443465,-618.0,0.00015565,2]
[406650237,1772033443474,-1732.78567267,0.00015572,2]
[406650238,1772033443484,-1341.04939345,0.0001589,2]
[406650239,1772033443493,-2500.0,0.0001589,2]
[406650240,1772033443503,-2500.0,0.0001589,2]
[406650241,1772033443512,-429.49570382,0.0001589,2]
[406650242,1772033443521,-215.41849404,0.0001589,2]
[406650247,1772033443639,-2500.0,0.0001589,2]
[406650248,1772033443664,-2208.62062,0.0001589,2]
[406650250,1772033443673,-2500.0,0.0001589,2]
[406650251,1772033443682,-2500.0,0.0001589,2]
[406650252,1772033443691,-505.60534384,0.0001589,2]
[406650253,1772033443701,-516.10263761,0.0001589,2]
[406650254,1772033443709,-2500.0,0.0001589,2]
[406650255,1772033443718,-700.42773043,0.0001589,2]
[406650256,1772033443728,-614.542994,0.0001589,2]
[406650257,1772033443738,-2019.14759919,0.0001589,2]
[406650258,1772033443747,-1000.0,0.00015895,2]
[406650259,1772033443757,-1000.0,0.00016282,2]
[406650260,1772033443767,-500.0,0.00016356,2]
[406650261,1772033443776,-500.0,0.00016356,2]
[406650262,1772033443785,-800.0,0.00016356,2]
[406650263,1772033443794,-645.8,0.00016438,2]
[406650264,1772033443804,-266.68789925,0.00016438,2]
[406650265,1772033443813,-3000.0,0.00016438,2]
[406650266,1772033443823,-1528.27485084,0.00016438,2]
[406650267,1772033443832,-1187.89476674,0.00016438,2]
[406650268,1772033443842,-3000.0,0.00016438,2]
[406650269,1772033443854,-1273.75528776,0.00016438,2]
[406650270,1772033443864,-2984.08045004,0.00016438,2]
[406650271,1772033443873,-1000.0,0.0001667,2]
[406650272,1772033443883,-645.8,0.00016712,2]
[406650273,1772033443893,-447.63445271,0.00016722,2]
[406650274,1772033443903,-1732.78567267,0.00016736,2]
[406650275,1772033443914,-505.0,0.00016912,3]
[406650276,1772033443924,-151.0,0.00016923,2]
[406650277,1772033443934,-156.587,0.00016923,2]
[406650278,1772033443944,-162.380719,0.00016923,2]
[406650279,1772033443953,-160.11759511,0.00016923,2]
[406650280,1772033443963,-277.35679052,0.00016923,2]
[406650281,1772033443972,-236.91,0.00016954,2]
[406650282,1772033443982,-645.8,0.00016986,2]
[406650283,1772033443991,-291.80881226,0.00016986,2]
[406650284,1772033444001,-3500.0,0.00016986,2]
[406650285,1772033444011,-110783.69499395,0.00017,2]
[406650286,1772033444020,-1000.0,0.00017058,2]
[406650287,1772033444029,-11560.47739,0.000171,2]
[406650288,1772033444039,-645.8,0.0001726,2]
[406650289,1772033444049,-3000.0,0.000173,6]
[406650290,1772033444059,-388.0,0.00017331,2]
[406650291,1772033444068,-388.0,0.00017397,2]
[406650292,1772033444078,-600.0,0.000174,6]
[406650293,1772033444088,-321.22673374,0.00017471,2]
[406650294,1772033444098,-600.0,0.000175,6]
[406650295,1772033444108,-300.0,0.00017503,5]
[406650296,1772033444118,-645.8,0.00017534,2]
[406650297,1772033444127,-4000.0,0.00017534,2]
[406650298,1772033444137,-600.0,0.000176,6]
[406650299,1772033444146,-688.05052413,0.0001764,2]
[406650300,1772033444156,-388.0,0.00017668,2]
[406650301,1772033444165,-388.0,0.00017669,2]
[406650302,1772033444175,-700.0,0.00017692,2]
[406650303,1772033444184,-993.0,0.00017698,2]
[406650304,1772033444193,-150.0,0.00017698,2]
[406650305,1772033444202,-150.0,0.00017698,2]
[406650306,1772033444212,-600.0,0.000177,6]
[406650307,1772033444221,-417.0,0.00017713,2]
[406650308,1772033444231,-417.0,0.00017719,2]
[406650309,1772033444240,-800.0,0.00017726,7]
[406650310,1772033444250,-388.0,0.00017736,2]
[406650311,1772033444260,-993.0,0.00017753,2]
[406650312,1772033444269,-150.0,0.00017753,2]
[406650313,1772033444279,-1030.10231547,0.00017777,2]
[406650314,1772033444288,-8046.1809962,0.000178,2]
[406650315,1772033444518,-400.0,0.000178,2]
[406650316,1772033444531,-1553.8190038,0.000178,2]
[406650317,1772033444541,-900.0,0.000178,6]
[406650318,1772033444551,-993.0,0.00017808,2]
[406650319,1772033444560,-150.0,0.00017808,2]
[406650320,1772033444571,-645.8,0.00017808,2]
[406650321,1772033444581,-500.0,0.00017808,2]
[406650322,1772033444591,-500.0,0.00017808,2]
[406650323,1772033444600,-500.0,0.00017808,2]
[406650324,1772033444609,-500.0,0.00017808,2]
[406650325,1772033444620,-500.0,0.00017808,2]
[406650326,1772033444629,-500.0,0.00017808,2]
[406650327,1772033444639,-500.0,0.00017808,2]
[406650328,1772033444648,-500.0,0.00017808,2]
[406650329,1772033444657,-500.0,0.00017808,2]
[406650330,1772033444666,-500.0,0.00017808,2]
[406650331,1772033444676,-500.0,0.00017808,2]
[406650332,1772033444685,-500.0,0.00017808,2]
[406650333,1772033444695,-500.0,0.00017808,2]
[406650334,1772033444704,-500.0,0.00017808,2]
[406650335,1772033444713,-500.0,0.00017808,2]
[406650336,1772033444723,-500.0,0.00017808,2]
[406650337,1772033444732,-500.0,0.00017808,2]
[406650338,1772033444741,-500.0,0.00017808,2]
[406650339,1772033444751,-500.0,0.00017808,2]
[406650340,1772033444760,-500.0,0.00017808,2]
[406650341,1772033444770,-500.0,0.00017808,2]
[406650342,1772033444779,-500.0,0.00017808,2]
[406650343,1772033444788,-213.34243895,0.00017808,2]
[406650344,1772033444798,-500.0,0.00017808,2]
[406650345,1772033444807,-450.0,0.00017808,2]
[406650346,1772033444816,-378.15184,0.0001782,2]
[406650347,1772033444827,-378.15185,0.0001782,2]
[406650348,1772033444837,-417.0,0.00017832,2]
[406650349,1772033444849,-388.0,0.00017839,2]
[406650350,1772033444859,-417.0,0.00017842,2]
[406650351,1772033444868,-993.0,0.00017862,2]
[406650352,1772033444879,-150.0,0.00017862,2]
[406650353,1772033444889,-500.0,0.00017863,2]
[406650354,1772033444898,-19973.12772144,0.000179,3]
[406650355,1772033444908,-1732.78567267,0.000179,2]
[406650356,1772033444919,-447.63445271,0.000179,2]
[406650357,1772033444929,-358.66971617,0.000179,2]
[406650358,1772033444939,-9856.0,0.000179,2]
[406650359,1772033444949,-993.0,0.00017917,2]
[406650360,1772033444959,-150.0,0.00017917,2]
[406650361,1772033444969,-500.0,0.00017918,2]
[406650362,1772033444978,-1000.0,0.00017927,2]
[406650363,1772033444988,-417.0,0.0001796,2]
[406650364,1772033444997,-993.0,0.00017972,2]
[406650365,1772033445007,-250.0,0.00017972,2]
[406650366,1772033445017,-500.0,0.00017972,2]
[406650367,1772033445027,-417.0,0.00017993,2]
[406650368,1772033445036,-269.917619,0.00017997,5]
[406650369,1772033445046,-279.9045709,0.00017997,5]